bitfinex/quotes_BTCUSD_20240915
["timestamp","ask_amount","ask_price","bid_price","bid_amount"]
[1726415980314,1.55680323,60482.0,60481.0,0.001648]
[1726415980525,1.40795386,60482.0,60481.0,0.001648]
[1726415980952,1.55680302,60482.0,60481.0,0.001648]
[1726415981205,1.40795386,60482.0,60481.0,0.001648]
[1726415981452,1.55679454,60482.0,60481.0,0.001648]
[1726415981934,1.43795386,60482.0,60481.0,0.001648]
[1726415982153,1.76862986,60482.0,60481.0,0.001648]
[1726415982581,1.79457894,60482.0,60481.0,0.001648]
[1726415982799,1.81188326,60482.0,60481.0,0.001648]
[1726415983245,1.97930116,60482.0,60481.0,0.001648]
[1726415983943,1.99130116,60482.0,60481.0,0.001648]
[1726415984165,1.98879355,60482.0,60481.0,0.001648]
[1726415984378,1.79542657,60482.0,60481.0,0.001648]
[1726415984600,1.79742657,60482.0,60481.0,0.001648]
[1726415985055,1.81142657,60482.0,60481.0,0.001648]
[1726415986094,1.48075057,60482.0,60481.0,0.001648]
[1726415986746,1.45075057,60482.0,60481.0,0.001648]
[1726415987614,1.47669903,60482.0,60481.0,0.001648]
[1726415987825,1.35244278,60482.0,60481.0,0.001648]
[1726415988080,0.66809078,60482.0,60481.0,0.001648]
[1726415988307,0.64214232,60482.0,60481.0,0.001648]
[1726415988518,0.76606028,60482.0,60481.0,0.001648]
[1726415988726,0.97281832,60482.0,60481.0,0.001648]
[1726415989645,0.95881832,60482.0,60481.0,0.001648]
[1726415989839,0.97281832,60482.0,60481.0,0.001648]
[1726415990305,0.95881832,60482.0,60481.0,0.001648]
[1726415990741,0.96481832,60482.0,60481.0,0.001648]
[1726415991058,0.62814232,60482.0,60481.0,0.001648]
[1726415991308,0.65708807,60482.0,60481.0,0.001648]
[1726415991547,0.64308807,60482.0,60481.0,0.001648]
[1726415992044,0.98676407,60482.0,60481.0,0.001648]
[1726415992265,0.97376407,60482.0,60481.0,0.001648]
[1726415992698,0.97876407,60482.0,60481.0,0.001648]
[1726415994779,0.95281832,60482.0,60481.0,0.001648]
[1726415998411,0.97876408,60482.0,60481.0,0.001648]
[1726416002166,0.935514,60482.0,60481.0,0.001648]
[1726416002373,0.932514,60482.0,60481.0,0.001648]
[1726416002615,0.930514,60482.0,60481.0,0.001648]
[1726416002851,0.931514,60482.0,60481.0,0.001648]
[1726416003053,0.928514,60482.0,60481.0,0.001648]
[1726416004253,0.101824,60482.0,60481.0,0.001648]
[1726416004476,0.597838,60482.0,60481.0,0.001648]
[1726416005435,0.101824,60482.0,60481.0,0.001648]
[1726416005665,0.001824,60482.0,60481.0,0.001648]
[1726416005890,0.497838,60482.0,60481.0,0.001648]
[1726416006611,0.496838,60482.0,60481.0,0.001648]
[1726416006848,0.16591131,60482.0,60481.0,0.001648]
[1726416007077,0.16691131,60482.0,60481.0,0.001648]
[1726416008259,0.34051712,60484.0,60482.0,3.82510595]
[1726416008494,0.34051712,60484.0,60482.0,3.82410595]
[1726416008495,0.596006,60483.0,60482.0,3.82410595]
[1726416008759,0.596006,60483.0,60482.0,3.82310595]
[1726416009874,0.63925416,60483.0,60482.0,3.82310595]
[1726416010318,0.64025416,60483.0,60482.0,3.82310595]
[1726416010645,0.30933254,60483.0,60482.0,3.82310595]
[1726416010785,0.64000354,60483.0,60482.0,3.82310595]
[1726416011248,0.64082754,60483.0,60482.0,3.82310595]
[1726416011698,0.47674316,60483.0,60482.0,3.82310595]
[1726416011907,0.64207816,60483.0,60482.0,3.82310595]
[1726416014238,0.61613432,60483.0,60482.0,3.82310595]
[1726416017548,0.64207778,60483.0,60482.0,3.82310595]
[1726416018035,0.74129556,60483.0,60482.0,3.82310595]
[1726416018271,0.64207778,60483.0,60482.0,3.82310595]
[1726416020047,0.74129674,60483.0,60482.0,3.82310595]
[1726416020257,0.71535328,60483.0,60482.0,3.82310595]
[1726416020484,0.71534947,60483.0,60482.0,3.82310595]
[1726416020700,0.61613432,60483.0,60482.0,3.82310595]
[1726416020910,0.28546332,60483.0,60482.0,3.82310595]
[1726416021972,0.02012832,60483.0,60482.0,3.82310595]
[1726416022190,0.09453468,60483.0,60482.0,3.9473622]
[1726416022396,0.02012832,60483.0,60482.0,3.9473622]
[1726416022606,0.02012832,60483.0,60482.0,3.82310595]
[1726416022822,0.06973029,60483.0,60482.0,3.82310595]
[1726416023032,0.06973029,60483.0,60482.0,3.85210595]
[1726416023287,0.02012832,60483.0,60482.0,3.85210595]
[1726416023714,0.0450702,60483.0,60482.0,4.01744395]
[1726416023927,0.0450702,60483.0,60482.0,4.01909195]
[1726416024207,0.0460702,60483.0,60482.0,4.01909195]
[1726416024421,0.02012832,60483.0,60482.0,4.34976795]
[1726416024643,0.01912832,60483.0,60482.0,4.54316795]
[1726416025104,0.02012832,60483.0,60482.0,4.54316795]
[1726416025354,0.02012832,60483.0,60482.0,4.3367482]
[1726416025576,0.02012832,60483.0,60482.0,4.6674242]
[1726416025788,0.01912832,60483.0,60482.0,4.6674242]
[1726416026109,0.02012832,60483.0,60482.0,4.6674242]
[1726416026698,0.02012832,60483.0,60482.0,4.3367482]
[1726416027351,0.02012832,60483.0,60482.0,4.6674242]
[1726416027564,0.04606971,60483.0,60482.0,4.6674242]
[1726416027946,0.04606971,60483.0,60482.0,4.3367482]
[1726416029669,0.02012832,60483.0,60482.0,4.3367482]
[1726416030826,0.01987812,60483.0,60482.0,4.3367482]
[1726416033131,0.04581954,60483.0,60482.0,4.3367482]
[1726416034291,0.01987812,60483.0,60482.0,4.3367482]
[1726416035298,0.01887812,60483.0,60482.0,4.3367482]
[1726416035532,0.01887812,60483.0,60482.0,4.1804102]
[1726416035747,0.01987812,60483.0,60482.0,4.1864102]
[1726416035960,0.01987812,60483.0,60482.0,4.1774102]
[1726416036177,0.01887812,60483.0,60482.0,4.1774102]
[1726416036412,0.01887812,60483.0,60482.0,4.1904102]
[1726416036413,0.01987812,60483.0,60482.0,4.1904102]
[1726416036880,0.01987812,60483.0,60482.0,4.3557482]
[1726416037325,0.04581957,60483.0,60482.0,4.3557482]
[1726416038813,0.01987812,60483.0,60482.0,4.1904102]
[1726416039314,0.51588412,60483.0,60482.0,4.06615395]
[1726416039551,0.56545595,60483.0,60482.0,4.06615395]
[1726416039763,0.51588412,60483.0,60482.0,4.06615395]
[1726416040015,0.51588412,60483.0,60482.0,4.03715395]
[1726416040478,0.52598265,60483.0,60482.0,4.03715395]
[1726416040752,0.51588412,60483.0,60482.0,3.84375395]
[1726416040964,0.89613506,60483.0,60482.0,3.84638295]
[1726416041379,0.56546406,60483.0,60482.0,3.84638295]
[1726416041596,0.89613506,60483.0,60482.0,3.84638295]
[1726416041806,0.56546406,60483.0,60482.0,3.84638295]
[1726416042461,0.23479306,60483.0,60482.0,3.84638295]
[1726416042693,0.21115525,60483.0,60482.0,3.84638295]
[1726416042956,0.54182625,60483.0,60482.0,3.84638295]
[1726416043639,0.21115525,60483.0,60482.0,3.84638295]
[1726416043879,0.04582025,60483.0,60482.0,4.23782095]
[1726416044075,0.04582025,60483.0,60482.0,4.56849695]
[1726416044316,0.01987812,60483.0,60482.0,4.89917295]
[1726416047412,0.04581907,60483.0,60482.0,4.89917295]
[1726416048861,0.01987812,60483.0,60482.0,4.89917295]
[1726416050758,0.01962739,60483.0,60482.0,4.89917295]
[1726416051627,0.01962739,60483.0,60482.0,3.87538295]
[1726416051856,0.01962739,60483.0,60482.0,3.9996392]
[1726416052358,0.04556862,60483.0,60482.0,3.9996392]
[1726416053257,0.04556862,60483.0,60482.0,4.1649772]
[1726416053666,0.04556862,60483.0,60482.0,4.4956532]
[1726416054313,0.01962739,60483.0,60482.0,4.4956532]
[1726416055890,0.01962739,60483.0,60482.0,3.87538295]
[1726416057427,0.04556878,60483.0,60482.0,3.87538295]
[1726416058782,0.61596597,60483.0,60482.0,3.87538295]
[1726416059008,0.54157478,60483.0,60482.0,3.87538295]
[1726416059254,0.26051411,60483.0,60482.0,3.87538295]
[1726416059708,0.2605148,60483.0,60482.0,3.87538295]
[1726416060375,0.21090378,60483.0,60482.0,3.87538295]
[1726416060994,0.2605188,60483.0,60482.0,3.87538295]
[1726416061211,0.28532031,60483.0,60482.0,3.87538295]
[1726416061652,0.21090378,60483.0,60482.0,3.87538295]
[1726416062088,0.28532031,60483.0,60482.0,3.87538295]
[1726416062770,0.21090378,60483.0,60482.0,3.87538295]
[1726416062982,0.28532031,60483.0,60482.0,3.87538295]
[1726416063206,0.28534114,60483.0,60482.0,3.87538295]
[1726416063700,0.61601214,60483.0,60482.0,3.87538295]
[1726416063871,0.28534114,60483.0,60482.0,3.87538295]
[1726416064090,0.26053099,60483.0,60482.0,3.87538295]
[1726416064307,0.21090378,60483.0,60482.0,3.87538295]
[1726416064523,0.28534459,60483.0,60482.0,3.87538295]
[1726416064995,0.2594032,60483.0,60482.0,3.87538295]
[1726416065445,0.18496239,60483.0,60482.0,3.87538295]
[1726416066078,0.51563339,60483.0,60482.0,3.87538295]
[1726416066835,0.59009829,60483.0,60482.0,3.87538295]
[1726416067005,0.25942729,60483.0,60482.0,3.87538295]
[1726416067434,0.18496239,60483.0,60482.0,3.87538295]
[1726416067672,0.25943378,60483.0,60482.0,3.87538295]
[1726416068135,0.09409836,60483.0,60482.0,3.9996392]
[1726416068335,0.06927439,60483.0,60482.0,3.9996392]
[1726416069000,0.01962739,60483.0,60482.0,3.9996392]
[1726416069223,0.18496239,60483.0,60482.0,3.9996392]
[1726416069451,0.23460939,60483.0,60482.0,3.9996392]
[1726416069665,0.18496239,60483.0,60482.0,3.9996392]
[1726416070357,0.18496239,60483.0,60482.0,3.87538295]
[1726416070553,0.25943336,60483.0,60482.0,3.87538295]
[1726416072978,0.25943693,60483.0,60482.0,3.87538295]
[1726416073426,0.61493278,60483.0,60482.0,3.87538295]
[1726416073647,0.59010732,60483.0,60482.0,3.87538295]
[1726416074080,0.84630439,60483.0,60482.0,3.84638295]
[1726416074308,0.94560386,60483.0,60482.0,3.84638295]
[1726416074522,0.97042863,60483.0,60482.0,3.84638295]
[1726416074746,0.97043052,60483.0,60482.0,3.84638295]
[1726416074974,0.63975952,60483.0,60482.0,3.84638295]
[1726416075233,0.51563339,60483.0,60482.0,3.84638295]
[1726416075447,0.63975952,60483.0,60482.0,3.84638295]
[1726416076096,0.51563339,60483.0,60482.0,3.84638295]
[1726416076754,0.84630439,60483.0,60482.0,3.84638295]
[1726416076974,0.98011507,60483.0,60482.0,3.84638295]
[1726416077635,0.98010843,60483.0,60482.0,3.84638295]
[1726416077901,0.63974243,60483.0,60482.0,3.87538295]
[1726416078856,0.61491684,60483.0,60482.0,3.87538295]
[1726416079405,0.28424584,60483.0,60482.0,3.87538295]
[1726416079599,0.25942187,60483.0,60482.0,3.9996392]
[1726416080079,0.18496239,60483.0,60482.0,3.9996392]
[1726416081078,0.01962739,60483.0,60482.0,3.9996392]
[1726416082540,0.18496239,60483.0,60482.0,3.9996392]
[1726416082745,0.1847132,60483.0,60482.0,3.9996392]
[1726416083188,0.21065564,60483.0,60482.0,3.9996392]
[1726416083822,0.04532064,60483.0,60482.0,3.9996392]
[1726416084494,0.0193782,60483.0,60482.0,3.9996392]
[1726416085347,0.1847132,60483.0,60482.0,3.9996392]
[1726416085608,0.1847132,60483.0,60482.0,3.87538295]
[1726416085837,0.58984244,60483.0,60482.0,3.87538295]
[1726416086485,0.5153842,60483.0,60482.0,3.87538295]
[1726416086913,0.61466185,60483.0,60482.0,3.87538295]
[1726416087348,0.61466712,60483.0,60482.0,3.87538295]
[1726416089040,0.61466712,60483.0,60482.0,3.84638295]
[1726416089277,0.94533812,60483.0,60482.0,3.84638295]
[1726416089935,0.61466712,60483.0,60482.0,3.84638295]
[1726416090885,0.63766712,60483.0,60482.0,3.84638295]
[1726416091089,0.96833812,60483.0,60482.0,3.84638295]
[1726416091321,1.09331145,60483.0,60482.0,3.84638295]
[1726416091532,1.11925525,60483.0,60482.0,3.84638295]
[1726416091736,1.54743308,60483.0,60482.0,3.84638295]
[1726416091948,1.54728057,60483.0,60482.0,3.84638295]
[1726416092135,1.54628057,60483.0,60482.0,3.83338295]
[1726416092347,1.54628057,60483.0,60482.0,3.83138295]
[1726416093196,1.47357354,60483.0,60482.0,3.83538295]
[1726416093366,1.69725423,60483.0,60482.0,3.83138295]
[1726416094119,1.47257354,60483.0,60482.0,3.82738295]
[1726416094553,1.47357354,60483.0,60482.0,3.83038295]
[1726416094981,1.44862974,60483.0,60482.0,3.83438295]
[1726416095192,1.44762974,60483.0,60482.0,3.83138295]
[1726416095400,1.44862974,60483.0,60482.0,3.83338295]
[1726416095624,1.44762974,60483.0,60482.0,3.82938295]
[1726416096046,1.44862974,60483.0,60482.0,3.83338295]
[1726416096679,1.11695874,60483.0,60482.0,3.83138295]
[1726416096949,0.9680552,60483.0,60482.0,3.83138295]
[1726416097163,1.44862974,60483.0,60482.0,3.83438295]
[1726416097816,1.2997262,60483.0,60482.0,3.83438295]
[1726416098265,1.2977262,60483.0,60482.0,3.82738295]
[1726416098495,1.6454867,60483.0,60482.0,3.83238295]
[1726416098744,1.6464867,60483.0,60482.0,3.83238295]
[1726416098964,1.6464867,60483.0,60482.0,3.82738295]
[1726416099187,1.6464867,60483.0,60482.0,3.82838295]
[1726416099442,1.6464867,60483.0,60482.0,3.83038295]
[1726416099904,1.6464867,60483.0,60482.0,3.83338295]
[1726416100123,1.6464867,60483.0,60482.0,3.83038295]
[1726416100590,1.19155945,60483.0,60482.0,3.83038295]
[1726416100864,1.19031026,60483.0,60482.0,3.82738295]
[1726416101072,1.33914605,60483.0,60482.0,3.82738295]
[1726416101337,1.36587535,60483.0,60482.0,3.82738295]
[1726416101547,1.69854635,60483.0,60482.0,3.82738295]
[1726416101765,1.36487535,60483.0,60482.0,3.82738295]
[1726416101983,1.14358683,60483.0,60482.0,3.82738295]
[1726416102200,1.14458683,60483.0,60482.0,3.82738295]
[1726416102650,1.47525783,60483.0,60482.0,3.82738295]
[1726416102867,0.99575104,60483.0,60482.0,3.82738295]
[1726416103344,1.47525783,60483.0,60482.0,3.82738295]
[1726416103559,1.14458683,60483.0,60482.0,3.82738295]
[1726416103777,1.77461692,60483.0,60482.0,3.82738295]
[1726416104686,1.91823995,60483.0,60482.0,3.82738295]
[1726416104952,2.07934289,60483.0,60482.0,3.82688295]
[1726416105193,1.74867189,60483.0,60482.0,3.82688295]
[1726416105420,1.91605089,60483.0,60482.0,3.82688295]
[1726416105877,1.74867189,60483.0,60482.0,3.82688295]
[1726416106096,1.91605051,60483.0,60482.0,3.82688295]
[1726416106334,1.77487189,60483.0,60482.0,3.62688295]
[1726416107243,1.44927701,60483.0,60482.0,3.62688295]
[1726416107715,1.4752239,60483.0,60482.0,3.62688295]
[1726416107932,1.44927701,60483.0,60482.0,3.62688295]
[1726416108397,1.30047701,60483.0,60482.0,3.62688295]
[1726416109077,1.30047701,60483.0,60482.0,3.62628295]
[1726416109298,1.42439947,60483.0,60482.0,3.62628295]
[1726416109517,1.30047701,60483.0,60482.0,3.62628295]
[1726416109982,1.42439943,60483.0,60482.0,3.62628295]
[1726416110209,1.30047701,60483.0,60482.0,3.62628295]
[1726416110956,1.32642258,60483.0,60482.0,3.62628295]
[1726416114329,1.35642258,60483.0,60482.0,3.62628295]
[1726416114551,1.5811003,60483.0,60482.0,3.62578295]
[1726416114774,1.9117713,60483.0,60482.0,3.62578295]
[1726416114987,1.70394719,60483.0,60482.0,3.62578295]
[1726416115205,1.88589601,60483.0,60482.0,3.62578295]
[1726416115427,1.55522501,60483.0,60482.0,3.62578295]
[1726416115644,1.48119462,60483.0,60482.0,3.62578295]
[1726416115865,1.88587895,60483.0,60482.0,3.62578295]
[1726416116339,1.55520795,60483.0,60482.0,3.62578295]
[1726416116576,1.55320795,60483.0,60482.0,3.62578295]
[1726416117037,1.72058657,60483.0,60482.0,3.62578295]
[1726416117498,1.55320795,60483.0,60482.0,3.62578295]
[1726416117986,1.55320795,60483.0,60482.0,3.62508295]
[1726416118221,1.90982592,60483.0,60482.0,3.62508295]
[1726416119120,1.91182592,60483.0,60482.0,3.62508295]
[1726416119350,1.55320795,60483.0,60482.0,3.62508295]
[1726416119793,1.55320795,60483.0,60482.0,3.58167707]
[1726416120061,1.55320795,60483.0,60482.0,3.54105048]
[1726416120283,1.8841216,60483.0,60482.0,3.54105048]
[1726416120513,1.5534506,60483.0,60482.0,3.54105048]
[1726416120750,1.8841216,60483.0,60482.0,3.54105048]
[1726416122397,1.83578513,60483.0,60482.0,3.54105048]
[1726416123331,1.68709501,60483.0,60482.0,3.54105048]
[1726416123536,1.83578513,60483.0,60482.0,3.54105048]
[1726416123748,2.05900077,60483.0,60482.0,3.54105048]
[1726416124432,2.03305377,60483.0,60482.0,3.54105048]
[1726416124844,1.80983813,60483.0,60482.0,3.54105048]
[1726416126023,1.33047701,60483.0,60482.0,3.54105048]
[1726416126275,1.55359302,60483.0,60482.0,3.54105048]
[1726416126506,1.33047701,60483.0,60482.0,3.54105048]
[1726416126732,1.66114801,60483.0,60482.0,3.54105048]
[1726416126986,1.80985308,60483.0,60482.0,3.54105048]
[1726416127231,1.88418473,60483.0,60482.0,3.54105048]
[1726416127711,1.91013173,60483.0,60482.0,3.54105048]
[1726416127955,2.058985,60483.0,60482.0,3.54105048]
[1726416128193,2.05901254,60483.0,60482.0,3.54105048]
[1726416128430,1.91026111,60483.0,60482.0,3.54105048]
[1726416128896,1.55364311,60483.0,60482.0,3.54105048]
[1726416129199,1.67789936,60483.0,60482.0,3.54105048]
[1726416129927,1.64789936,60483.0,60482.0,3.54105048]
[1726416130177,1.67789936,60483.0,60482.0,3.54105048]
[1726416131627,1.64789936,60483.0,60482.0,3.54105048]
[1726416131868,1.67384598,60483.0,60482.0,3.54105048]
[1726416133087,1.67406981,60483.0,60482.0,3.54105048]
[1726416134598,1.70406981,60483.0,60482.0,3.54105048]
[1726416135050,1.67812319,60483.0,60482.0,3.54105048]
[1726416135281,1.8455121,60483.0,60482.0,3.54105048]
[1726416135744,2.01079419,60483.0,60482.0,3.54105048]
[1726416136480,2.11948081,60483.0,60482.0,3.54105048]
[1726416136983,2.43755894,60483.0,60482.0,3.54105048]
[1726416137909,2.43667971,60483.0,60482.0,3.54105048]
[1726416138407,2.46262677,60483.0,60482.0,3.54105048]
[1726416139593,2.46262677,60483.0,60482.0,3.51705048]
[1726416139594,2.82429777,60483.0,60482.0,3.51705048]
[1726416139841,2.87449626,60483.0,60482.0,3.51705048]
[1726416140586,2.54282526,60483.0,60482.0,3.51595048]
[1726416140831,2.3941048,60483.0,60482.0,3.51595048]
[1726416141322,2.7177758,60483.0,60482.0,3.51595048]
[1726416141568,2.7157758,60483.0,60482.0,3.51595048]
[1726416141813,2.77397429,60483.0,60482.0,3.51595048]
[1726416142184,2.7157758,60483.0,60482.0,3.51595048]
[1726416142619,2.3971048,60483.0,60482.0,3.51595048]
[1726416142867,2.06702667,60483.0,60482.0,3.51595048]
[1726416143126,2.09102667,60483.0,60482.0,3.51595048]
[1726416143617,2.41069767,60483.0,60482.0,3.51595048]
[1726416143839,2.42269767,60483.0,60482.0,3.51595048]
[1726416144060,2.4101048,60483.0,60482.0,3.51595048]
[1726416144275,2.7407758,60483.0,60482.0,3.51595048]
[1726416144504,2.4101048,60483.0,60482.0,3.51595048]
[1726416144954,2.42269767,60483.0,60482.0,3.51595048]
[1726416145186,2.7407758,60483.0,60482.0,3.51595048]
[1726416146072,2.71482874,60483.0,60482.0,3.51595048]
[1726416146357,2.76502723,60483.0,60482.0,3.51595048]
[1726416146558,2.93626744,60483.0,60482.0,3.51595048]
[1726416147769,2.93626744,60483.0,60482.0,3.49858727]
[1726416149367,2.96221672,60483.0,60482.0,3.49858727]
[1726416150028,3.20651781,60483.0,60482.0,3.49858727]
[1726416150244,2.96221672,60483.0,60482.0,3.49858727]
[1726416150456,2.93626744,60483.0,60482.0,3.49858727]
[1726416152721,2.76502723,60483.0,60482.0,3.49858727]
[1726416153369,2.79097639,60483.0,60482.0,3.49858727]
[1726416154700,3.03527748,60483.0,60482.0,3.49858727]
[1726416155197,2.79097639,60483.0,60482.0,3.49858727]
[1726416155417,2.7407779,60483.0,60482.0,3.49858727]
[1726416155633,2.71482874,60483.0,60482.0,3.49858727]
[1726416156077,2.88606895,60483.0,60482.0,3.49858727]
[1726416156343,2.93626744,60483.0,60482.0,3.49858727]
[1726416156566,2.76502723,60483.0,60482.0,3.49858727]
[1726416156779,2.71482874,60483.0,60482.0,3.49858727]
[1726416157980,2.76502723,60483.0,60482.0,3.49858727]
[1726416159910,3.00917546,60483.0,60482.0,3.49858727]
[1726416160148,3.03512511,60483.0,60482.0,3.49858727]
[1726416160407,2.79097688,60483.0,60482.0,3.49858727]
[1726416160877,2.96221709,60483.0,60482.0,3.49858727]
[1726416161577,2.9616836,60483.0,60482.0,3.49858727]
[1726416164032,2.79044339,60483.0,60482.0,3.49858727]
[1726416164483,2.76449374,60483.0,60482.0,3.49858727]
[1726416165211,2.43382274,60483.0,60482.0,3.49858727]
[1726416165462,2.257368,60483.0,60482.0,3.49858727]
[1726416165720,2.06554612,60483.0,60482.0,3.49858727]
[1726416166445,2.23678633,60483.0,60482.0,3.49858727]
[1726416166706,2.56745733,60483.0,60482.0,3.49858727]
[1726416166971,2.55486446,60483.0,60482.0,3.49858727]
[1726416167192,2.23678633,60483.0,60482.0,3.49858727]
[1726416167419,2.56745733,60483.0,60482.0,3.49858727]
[1726416167649,2.91148484,60483.0,60482.0,3.49858727]
[1726416167921,2.93573395,60483.0,60482.0,3.49858727]
[1726416168414,2.60506295,60483.0,60482.0,3.49858727]
[1726416168652,2.23678633,60483.0,60482.0,3.49858727]
[1726416168891,2.56745733,60483.0,60482.0,3.49858727]
[1726416169112,2.88553546,60483.0,60482.0,3.49858727]
[1726416169339,2.93573395,60483.0,60482.0,3.49858727]
[1726416169562,2.60506295,60483.0,60482.0,3.49858727]
[1726416169794,2.23678633,60483.0,60482.0,3.49858727]
[1726416170558,2.55486446,60483.0,60482.0,3.49858727]
[1726416170835,2.38362425,60483.0,60482.0,3.49858727]
[1726416171039,2.18443167,60483.0,60482.0,3.49858727]
[1726416171293,2.09162506,60483.0,60482.0,3.49858727]
[1726416173614,2.42229606,60483.0,60482.0,3.49858727]
[1726416173838,2.09162506,60483.0,60482.0,3.49858727]
[1726416174080,2.65391505,60483.0,60482.0,3.49858727]
[1726416174351,2.71233627,60483.0,60482.0,2.1767327]
[1726416174554,2.71233627,60483.0,60482.0,1.45883987]
[1726416174555,3.86513931,60483.0,60482.0,1.45883987]
[1726416174800,3.86513931,60483.0,60482.0,1.29349987]
[1726416174801,3.9153378,60483.0,60482.0,1.29349987]
[1726416175047,3.73536993,60483.0,60482.0,1.29349987]
[1726416175308,3.72336993,60483.0,60482.0,1.29349987]
[1726416175538,3.72436993,60483.0,60482.0,1.29349987]
[1726416175765,3.626122,60483.0,60482.0,1.12815987]
[1726416176005,4.02495868,60483.0,60482.0,1.12815987]
[1726416176250,3.99695868,60483.0,60482.0,0.66048122]
[1726416176502,4.85163668,60483.0,60482.0,0.53593635]
[1726416176727,4.83763668,60483.0,60482.0,0.50286835]
[1726416176972,4.82363668,60483.0,60482.0,0.19962663]
[1726416177225,4.82363668,60483.0,60468.0,0.001648]
[1726416177226,1.882108,60469.0,60468.0,0.001648]
[1726416177457,1.882108,60469.0,60456.0,0.3036]
[1726416177458,0.559179,60462.0,60456.0,0.3036]
[1726416177700,0.9496172,60462.0,60456.0,0.3036]
[1726416177977,2.50541593,60462.0,60456.0,0.3036]
[1726416178255,2.53643132,60462.0,60456.0,0.3036]
[1726416178480,2.69886629,60462.0,60456.0,0.3036]
[1726416178710,2.55943159,60462.0,60456.0,0.3036]
[1726416178939,2.55348101,60462.0,60456.0,0.3036]
[1726416179417,2.56748101,60462.0,60456.0,0.3036]
[1726416179653,2.58148101,60462.0,60456.0,0.3036]
[1726416180103,2.61884039,60462.0,60456.0,0.3036]
[1726416180351,2.63284039,60462.0,60456.0,0.3036]
[1726416180572,2.8040806,60462.0,60456.0,0.3036]
[1726416181737,2.8180806,60462.0,60456.0,0.3036]
[1726416182476,2.08339966,60462.0,60456.0,0.3036]
[1726416182965,1.90778403,60462.0,60456.0,0.3036]
[1726416183469,2.05649292,60462.0,60456.0,0.3036]
[1726416183697,1.90778403,60462.0,60456.0,0.3036]
[1726416183939,2.28913008,60462.0,60456.0,0.3036]
[1726416184169,2.46037368,60462.0,60456.0,0.3036]
[1726416184634,2.22825012,60462.0,60456.0,0.3036]
[1726416184858,2.28552488,60462.0,60456.0,0.3036]
[1726416185340,0.063,60460.0,60459.0,0.18403465]
[1726416185592,0.67996981,60457.0,60456.0,0.3036]
[1726416185847,1.84569467,60457.0,60456.0,0.3036]
[1726416186092,2.09532383,60457.0,60456.0,0.3036]
[1726416186347,2.34907797,60457.0,60456.0,0.3036]
[1726416186787,2.09508057,60457.0,60456.0,0.3036]
[1726416187261,2.10708057,60457.0,60456.0,0.3036]
[1726416187495,2.27217114,60457.0,60456.0,0.3036]
[1726416187753,2.10708057,60457.0,60456.0,0.3036]
[1726416187989,2.29614466,60457.0,60456.0,0.3036]
[1726416188489,2.47629299,60457.0,60456.0,0.3036]
[1726416188715,2.6475911,60457.0,60456.0,0.3036]
[1726416189177,2.62163265,60457.0,60456.0,0.304424]
[1726416189896,2.95244565,60457.0,60456.0,0.304424]
[1726416190146,2.67002384,60457.0,60456.0,0.304424]
[1726416190370,2.62020578,60457.0,60456.0,0.304424]
[1726416191871,2.62020578,60457.0,60456.0,0.000824]
[1726416192094,2.64616485,60457.0,60456.0,0.000824]
[1726416193786,1.95249601,60457.0,60456.0,0.000824]
[1726416194016,1.95249601,60457.0,60456.0,0.197724]
[1726416194262,2.11755082,60457.0,60456.0,0.197724]
[1726416195234,2.09159175,60457.0,60456.0,0.197724]
[1726416196176,2.09359175,60457.0,60456.0,0.197724]
[1726416196423,2.59564496,60457.0,60456.0,0.197724]
[1726416196667,2.36451683,60457.0,60456.0,0.01912964]
[1726416196907,2.19946202,60457.0,60456.0,0.01912964]
[1726416197136,2.38907765,60457.0,60456.0,0.01912964]
[1726416197362,1.613829,60450.0,60448.0,0.3316]
[1726416197822,1.611829,60450.0,60448.0,0.3316]
[1726416198046,1.613829,60450.0,60448.0,0.3316]
[1726416198516,1.70054004,60450.0,60448.0,0.3316]
[1726416198768,1.70354004,60450.0,60448.0,0.3316]
[1726416199218,2.15808245,60450.0,60448.0,0.3316]
[1726416199442,2.03439104,60450.0,60448.0,0.3316]
[1726416199884,2.26285701,60450.0,60449.0,0.001648]
[1726416200336,2.25885701,60450.0,60449.0,0.001648]
[1726416200562,2.43009722,60450.0,60449.0,0.001648]
[1726416200787,2.44409722,60450.0,60449.0,0.001648]
[1726416201003,2.4295808,60450.0,60449.0,0.001648]
[1726416201722,2.4265808,60450.0,60449.0,0.001648]
[1726416202189,2.4345808,60450.0,60449.0,0.001648]
[1726416202421,1.92148959,60450.0,60449.0,0.001648]
[1726416202649,1.67554004,60450.0,60449.0,0.001648]
[1726416202875,1.54278923,60450.0,60449.0,0.333248]
[1726416203102,1.67167196,60450.0,60449.0,0.530148]
[1726416203366,1.64367336,60450.0,60449.0,0.530148]
[1726416203566,1.65767336,60450.0,60449.0,0.530148]
[1726416204259,1.79467336,60450.0,60449.0,0.530148]
[1726416204981,1.72471313,60450.0,60449.0,0.530148]
[1726416205196,1.75471313,60450.0,60449.0,0.530148]
[1726416205438,1.74971313,60450.0,60449.0,0.530148]
[1726416205951,1.91695334,60450.0,60449.0,0.530148]
[1726416206178,2.03397693,60450.0,60449.0,0.530148]
[1726416206409,1.97751057,60450.0,60449.0,0.530148]
[1726416206633,1.82206921,60450.0,60449.0,0.530148]
[1726416207318,1.68157981,60450.0,60449.0,0.333248]
[1726416207551,2.36165246,60450.0,60449.0,0.001648]
[1726416207779,2.3051861,60450.0,60449.0,0.001648]
[1726416208008,2.53289267,60450.0,60449.0,0.00020505]
[1726416208245,2.5588571,60450.0,60449.0,0.00020505]
[1726416208741,2.50239074,60450.0,60449.0,0.00020505]
[1726416208966,2.49839074,60450.0,60449.0,0.00020505]
[1726416209192,2.50439074,60450.0,60449.0,0.00020505]
[1726416209669,1.65180481,60441.0,60440.0,0.001646]
[1726416209888,2.0889671,60441.0,60440.0,0.001646]
[1726416210352,2.58678248,60441.0,60440.0,0.001646]
[1726416210579,2.44583688,60441.0,60440.0,0.001646]
[1726416210810,2.52079278,60441.0,60440.0,0.001646]
[1726416211517,2.68768966,60441.0,60440.0,0.001646]
[1726416211740,2.52679278,60441.0,60440.0,0.001646]
[1726416211963,2.53596319,60441.0,60440.0,0.001646]
[1726416212194,2.54296319,60441.0,60440.0,0.001646]
[1726416212663,2.54396319,60441.0,60440.0,0.001646]
[1726416212879,2.55796319,60441.0,60440.0,0.001646]
[1726416213377,2.72484941,60441.0,60440.0,0.001646]
[1726416214343,2.26839166,60441.0,60440.0,0.001646]
[1726416214577,2.25439166,60441.0,60440.0,0.001646]
[1726416214794,2.26839166,60441.0,60440.0,0.001646]
[1726416215032,2.22842288,60441.0,60440.0,0.001646]
[1726416215272,2.21442288,60441.0,60440.0,0.001646]
[1726416215521,2.42266309,60441.0,60440.0,0.001646]
[1726416215959,2.4388766,60441.0,60440.0,0.001646]
[1726416216469,2.0799756,60441.0,60440.0,0.001646]
[1726416216704,2.0959756,60441.0,60440.0,0.001646]
[1726416216941,1.85579718,60441.0,60440.0,0.001646]